[Event "*** Titled Tuesday Blitz"]
[Site "Chess.com"]
[Date "2021.04.20"]
[Round "7"]
[White "NTBT_DHS"]
[Black "rasmussvane"]
[Result "0-1"]
[WhiteElo "2720"]
[BlackElo "2880"]
[TimeControl "180+1"]
[EndTime "11:19:17 PDT"]
[Termination "rasmussvane won by resignation"]

1. d4 {[%clk 0:02:30.1]} 1... d5 {[%clk 0:02:59.6]} 2. c4 {[%clk 0:02:30]} 2...
e6 {[%clk 0:03:00.1]} 3. Nf3 {[%clk 0:02:30.7]} 3... a6 {[%clk 0:03:00.6]} 4. g3
{[%clk 0:02:31.6]} 4... dxc4 {[%clk 0:03:00.6]} 5. Bg2 {[%clk 0:02:31.7]} 5...
b5 {[%clk 0:03:01]} 6. O-O {[%clk 0:02:32.6]} 6... Bb7 {[%clk 0:03:01.4]} 7. a4
{[%clk 0:02:33.2]} 7... Nd7 {[%clk 0:03:01.2]} 8. b3 {[%clk 0:02:33]} 8... cxb3
{[%clk 0:02:59.9]} 9. Qxb3 {[%clk 0:02:33.9]} 9... b4 {[%clk 0:02:59.4]} 10. a5
{[%clk 0:02:33.1]} 10... Ngf6 {[%clk 0:02:59]} 11. Bb2 {[%clk 0:02:32.1]} 11...
Be7 {[%clk 0:02:58.7]} 12. Nbd2 {[%clk 0:02:32.4]} 12... O-O {[%clk 0:02:58.8]}
13. Rfe1 {[%clk 0:02:31.5]} 13... c5 {[%clk 0:02:58.2]} 14. Rad1 {[%clk
0:02:28.6]} 14... Qxa5 {[%clk 0:02:51]} 15. e4 {[%clk 0:02:24.2]} 15... cxd4
{[%clk 0:02:48.4]} 16. Nxd4 {[%clk 0:02:23]} 16... Nc5 {[%clk 0:02:46.6]} 17.
Qe3 {[%clk 0:02:23.2]} 17... Qa2 {[%clk 0:02:24.7]} 18. Rb1 {[%clk 0:02:12.9]}
18... Rfd8 {[%clk 0:02:14.1]} 19. N2b3 {[%clk 0:01:47.9]} 19... Na4 {[%clk
0:01:35.7]} 20. Ba1 {[%clk 0:01:09.2]} 20... Rac8 {[%clk 0:01:34.8]} 21. Na5
{[%clk 0:00:56.9]} 21... Ba8 {[%clk 0:01:29.9]} 22. Ndb3 {[%clk 0:00:57.2]}
22... Nc3 {[%clk 0:01:24.8]} 23. Rb2 {[%clk 0:00:56.9]} 23... Qa4 {[%clk
0:01:19.1]} 24. Qa7 {[%clk 0:00:54.6]} 24... Bf8 {[%clk 0:01:12.9]} 25. e5
{[%clk 0:00:49.1]} 25... Nfd5 {[%clk 0:01:01.6]} 26. Qxa6 {[%clk 0:00:46.8]}
26... Qb5 {[%clk 0:00:46.3]} 27. Bf1 {[%clk 0:00:41.7]} 27... Qxa6 {[%clk
0:00:40.7]} 28. Bxa6 {[%clk 0:00:42.6]} 28... Rc7 {[%clk 0:00:41]} 29. Rd2
{[%clk 0:00:41.5]} 29... Rb8 {[%clk 0:00:38.1]} 30. Bf1 {[%clk 0:00:40.1]} 30...
h6 {[%clk 0:00:36.8]} 31. Nc4 {[%clk 0:00:39.9]} 31... Nb5 {[%clk 0:00:32.1]}
32. Bb2 {[%clk 0:00:35.9]} 32... Rbc8 {[%clk 0:00:29.3]} 33. Ra1 {[%clk
0:00:35.1]} 33... Nbc3 {[%clk 0:00:26.8]} 34. Nd6 {[%clk 0:00:32.3]} 34... Rb8
{[%clk 0:00:26.3]} 35. Bg2 {[%clk 0:00:28.5]} 35... Be7 {[%clk 0:00:23.5]} 36.
h4 {[%clk 0:00:24.9]} 36... Bc6 {[%clk 0:00:21.4]} 37. Ra6 {[%clk 0:00:24.5]}
37... Nb5 {[%clk 0:00:16.3]} 38. Rc2 {[%clk 0:00:21.6]} 38... Be8 {[%clk
0:00:11.1]} 39. Rxc7 {[%clk 0:00:20.9]} 39... Nbxc7 {[%clk 0:00:10.6]} 40. Ra7
{[%clk 0:00:20.8]} 40... Kf8 {[%clk 0:00:09.2]} 41. Bd4 {[%clk 0:00:16.8]} 41...
Nb5 {[%clk 0:00:09.4]} 42. Nxb5 {[%clk 0:00:15.7]} 42... Bxb5 {[%clk 0:00:10.3]}
43. Be4 {[%clk 0:00:15.1]} 43... Bc4 {[%clk 0:00:09.9]} 44. Na5 {[%clk
0:00:14.9]} 44... Bb5 {[%clk 0:00:07.2]} 45. Kg2 {[%clk 0:00:12.5]} 45... Nc3
{[%clk 0:00:07.1]} 46. Bf3 {[%clk 0:00:12.1]} 46... Be2 {[%clk 0:00:04.4]} 47.
Nc6 {[%clk 0:00:10]} 47... Bxf3+ {[%clk 0:00:04.5]} 48. Kxf3 {[%clk 0:00:10.9]}
48... Re8 {[%clk 0:00:04.5]} 49. Nxe7 {[%clk 0:00:11.1]} 49... Nb5 {[%clk
0:00:03.7]} 50. Ng6+ {[%clk 0:00:09]} 50... fxg6 {[%clk 0:00:04.6]} 51. Bc5+
{[%clk 0:00:09.5]} 51... Kg8 {[%clk 0:00:05.1]} 52. Rb7 {[%clk 0:00:10.3]} 52...
Nc3 {[%clk 0:00:04.6]} 53. Rxb4 {[%clk 0:00:10.1]} 53... Nd5 {[%clk 0:00:05.2]}
54. Rb7 {[%clk 0:00:10.4]} 54... Kh7 {[%clk 0:00:05.5]} 55. Kg4 {[%clk
0:00:09.6]} 55... Rc8 {[%clk 0:00:05.6]} 56. Bd6 {[%clk 0:00:09.9]} 56... Rc4+
{[%clk 0:00:05.8]} 57. f4 {[%clk 0:00:10.4]} 57... Ne3+ {[%clk 0:00:06.1]} 58.
Kf3 {[%clk 0:00:10.7]} 58... Nf5 {[%clk 0:00:06.6]} 59. Bb4 {[%clk 0:00:10]}
59... h5 {[%clk 0:00:06.1]} 60. Rb6 {[%clk 0:00:09.4]} 60... Rd4 {[%clk
0:00:06.3]} 61. Kf2 {[%clk 0:00:07.8]} 61... Rc4 {[%clk 0:00:05.4]} 62. Ba5
{[%clk 0:00:06.6]} 62... Ra4 {[%clk 0:00:05.1]} 63. Be1 {[%clk 0:00:06.4]} 63...
Nd4 {[%clk 0:00:03.5]} 64. Rb7 {[%clk 0:00:05.8]} 64... Ra2+ {[%clk 0:00:03.9]}
65. Kf1 {[%clk 0:00:05.7]} 65... Nf5 {[%clk 0:00:04.3]} 66. Rb6 {[%clk 0:00:05]}
66... Ne3+ {[%clk 0:00:04.5]} 67. Kg1 {[%clk 0:00:05]} 67... Rg2+ {[%clk
0:00:05.3]} 68. Kh1 {[%clk 0:00:05.6]} 68... Re2 {[%clk 0:00:06.2]} 69. Bb4
{[%clk 0:00:05.6]} 69... Nf5 {[%clk 0:00:06.2]} 70. Rxe6 {[%clk 0:00:04.7]}
70... Nxg3+ {[%clk 0:00:06.7]} 71. Kg1 {[%clk 0:00:05.4]} 71... Nf5 {[%clk
0:00:07.6]} 72. Re8 {[%clk 0:00:05.2]} 72... Nxh4 {[%clk 0:00:07.3]} 73. e6
{[%clk 0:00:05.3]} 73... Re4 {[%clk 0:00:05.7]} 74. Bd6 {[%clk 0:00:04.9]} 74...
Nf5 {[%clk 0:00:05.8]} 75. Be5 {[%clk 0:00:05.3]} 75... h4 {[%clk 0:00:06.3]}
76. Kg2 {[%clk 0:00:05]} 76... Re2+ {[%clk 0:00:06]} 77. Kh3 {[%clk 0:00:04.4]}
77... Re3+ {[%clk 0:00:06.1]} 78. Kh2 {[%clk 0:00:05]} 78... g5 {[%clk
0:00:04.2]} 79. Rf8 {[%clk 0:00:05.1]} 79... Ne7 {[%clk 0:00:02.9]} 80. Rf7
{[%clk 0:00:05.6]} 80... Nd5 {[%clk 0:00:03.2]} 81. Rxg7+ {[%clk 0:00:06.1]}
81... Kh6 {[%clk 0:00:03.7]} 82. fxg5+ {[%clk 0:00:06.1]} 82... Kh5 {[%clk
0:00:04.3]} 83. Bf6 {[%clk 0:00:03.7]} 83... Kg4 {[%clk 0:00:04.6]} 84. e7
{[%clk 0:00:02.6]} 84... Re2+ {[%clk 0:00:04.9]} 85. Kg1 {[%clk 0:00:03.2]}
85... h3 {[%clk 0:00:05.3]} 86. Rh7 {[%clk 0:00:03.9]} 86... Kg3 {[%clk
0:00:05.4]} 87. Kf1 {[%clk 0:00:03.7]} 87... Re4 {[%clk 0:00:04.7]} 88. g6
{[%clk 0:00:02.7]} 88... Nxf6 {[%clk 0:00:04.6]} 89. Rf7 {[%clk 0:00:03.1]}
89... Ne8 {[%clk 0:00:04.3]} 90. Rh7 {[%clk 0:00:02.5]} 90... Rg4 {[%clk
0:00:04.1]} 91. g7 {[%clk 0:00:02.6]} 91... Rxg7 {[%clk 0:00:03.9]} 92. Rh8
{[%clk 0:00:03.3]} 92... Rxe7 {[%clk 0:00:04]} 93. Kg1 {[%clk 0:00:04]} 93...
Rg7 {[%clk 0:00:04.2]} 94. Kh1 {[%clk 0:00:04.3]} 94... Re7 {[%clk 0:00:04.3]}
95. Rg8+ {[%clk 0:00:04.3]} 95... Kh4 {[%clk 0:00:04.8]} 96. Rh8+ {[%clk
0:00:04.7]} 96... Kg4 {[%clk 0:00:05.4]} 97. Rg8+ {[%clk 0:00:05.2]} 97... Ng7
{[%clk 0:00:06.1]} 98. Rh8 {[%clk 0:00:05.1]} 98... Kg3 {[%clk 0:00:06.2]} 0-1

[Event "*** Titled Tuesday Blitz"]
[Site "Chess.com"]
[Date "2021.04.20"]
[Round "8"]
[White "guillembaches"]
[Black "BahadirOzen"]
[Result "1-0"]
[WhiteElo "2523"]
[BlackElo "2675"]
[TimeControl "180+1"]
[EndTime "11:21:20 PDT"]
[Termination "guillembaches won by resignation"]

1. e4 {[%clk 0:03:00.9]} 1... g6 {[%clk 0:03:00.1]} 2. d4 {[%clk 0:03:00.3]}
2... d6 {[%clk 0:03:00.6]} 3. Be3 {[%clk 0:02:59.8]} 3... Bg7 {[%clk 0:02:57.7]}
4. Qd2 {[%clk 0:02:59.3]} 4... c6 {[%clk 0:02:53.2]} 5. f4 {[%clk 0:02:52.7]}
5... Nd7 {[%clk 0:02:42.9]} 6. Nf3 {[%clk 0:02:47.8]} 6... Ndf6 {[%clk
0:02:37.9]} 7. Nc3 {[%clk 0:02:39.5]} 7... b5 {[%clk 0:02:37.2]} 8. e5 {[%clk
0:02:33.5]} 8... b4 {[%clk 0:02:36.9]} 9. exf6 {[%clk 0:02:33.3]} 9... bxc3
{[%clk 0:02:36.7]} 10. fxg7 {[%clk 0:02:19.8]} 10... cxd2+ {[%clk 0:02:36.2]}
11. Bxd2 {[%clk 0:02:12.3]} 1-0

[Event "*** Titled Tuesday Blitz"]
[Site "Chess.com"]
[Date "2021.04.20"]
[Round "8"]
[White "DanielTitichoca"]
[Black "anon481216"]
[Result "1-0"]
[WhiteElo "2318"]
[BlackElo "2538"]
[TimeControl "180+1"]
[EndTime "11:22:53 PDT"]
[Termination "DanielTitichoca won by resignation"]

1. e4 {[%clk 0:02:40.1]} 1... c5 {[%clk 0:02:59.4]} 2. Nf3 {[%clk 0:02:39.7]}
2... e6 {[%clk 0:02:59.6]} 3. d4 {[%clk 0:02:40.1]} 3... cxd4 {[%clk 0:02:59.9]}
4. Nxd4 {[%clk 0:02:41]} 4... Nc6 {[%clk 0:03:00.3]} 5. Nc3 {[%clk 0:02:41.6]}
5... Qc7 {[%clk 0:03:00.7]} 6. Be3 {[%clk 0:02:40.7]} 6... a6 {[%clk 0:03:00.6]}
7. a3 {[%clk 0:02:41.3]} 7... Nf6 {[%clk 0:02:58.4]} 8. f4 {[%clk 0:02:41.6]}
8... b5 {[%clk 0:02:31.1]} 9. e5 {[%clk 0:02:24.4]} 9... Ng8 {[%clk 0:02:24.8]}
10. Bd3 {[%clk 0:02:17.6]} 10... f6 {[%clk 0:02:21.3]} 11. Qh5+ {[%clk
0:02:14.6]} 11... Kd8 {[%clk 0:02:14.6]} 12. Qf7 {[%clk 0:02:09.6]} 12... Nh6
{[%clk 0:02:13.2]} 13. Qh5 {[%clk 0:02:00.5]} 13... fxe5 {[%clk 0:02:12]} 14.
Nxc6+ {[%clk 0:01:58.6]} 14... Qxc6 {[%clk 0:02:04]} 15. fxe5 {[%clk 0:01:58.5]}
15... Bb7 {[%clk 0:01:56.7]} 16. Be4 {[%clk 0:01:53.6]} 16... Qc7 {[%clk
0:01:56.3]} 17. O-O-O {[%clk 0:01:53.3]} 17... Kc8 {[%clk 0:01:53.3]} 18. Qe8+
{[%clk 0:01:50.9]} 18... Qd8 {[%clk 0:01:51.3]} 19. Bxb7+ {[%clk 0:01:51.1]}
19... Kxb7 {[%clk 0:01:51]} 20. Rxd7+ {[%clk 0:01:51.6]} 1-0

[Event "*** Titled Tuesday Blitz"]
[Site "Chess.com"]
[Date "2021.04.20"]
[Round "8"]
[White "mjray79"]
[Black "Iball95"]
[Result "0-1"]
[WhiteElo "2435"]
[BlackElo "2603"]
[TimeControl "180+1"]
[EndTime "11:22:56 PDT"]
[Termination "Iball95 won by resignation"]

1. d4 {[%clk 0:03:00.9]} 1... e6 {[%clk 0:02:53.8]} 2. g3 {[%clk 0:02:59.6]}
2... c5 {[%clk 0:02:53.3]} 3. Nf3 {[%clk 0:02:56.4]} 3... cxd4 {[%clk
0:02:51.1]} 4. Nxd4 {[%clk 0:02:57.3]} 4... d5 {[%clk 0:02:51.5]} 5. Bg2 {[%clk
0:02:57.3]} 5... e5 {[%clk 0:02:51.7]} 6. Nb3 {[%clk 0:02:57.4]} 6... Nf6 {[%clk
0:02:51.2]} 7. O-O {[%clk 0:02:57.1]} 7... Be7 {[%clk 0:02:49]} 8. Bg5 {[%clk
0:02:50.7]} 8... Be6 {[%clk 0:02:47.4]} 9. Bxf6 {[%clk 0:02:39.1]} 9... Bxf6
{[%clk 0:02:48.3]} 10. Nc3 {[%clk 0:02:39.8]} 10... e4 {[%clk 0:02:45]} 11. Nc5
{[%clk 0:02:34.5]} 11... O-O {[%clk 0:02:44.7]} 12. Nxe6 {[%clk 0:02:31.2]}
12... fxe6 {[%clk 0:02:45.6]} 13. f3 {[%clk 0:02:29.5]} 13... Qb6+ {[%clk
0:02:41.8]} 14. Kh1 {[%clk 0:02:29.4]} 14... Qxb2 {[%clk 0:02:41.7]} 15. fxe4
{[%clk 0:02:22.4]} 15... Qxc3 {[%clk 0:02:35.4]} 16. Rb1 {[%clk 0:02:21.1]}
16... Nc6 {[%clk 0:02:29.7]} 17. exd5 {[%clk 0:02:20.7]} 17... exd5 {[%clk
0:02:30.6]} 18. Qxd5+ {[%clk 0:02:17.8]} 18... Kh8 {[%clk 0:02:29.6]} 19. Rxb7
{[%clk 0:02:18.7]} 19... Rac8 {[%clk 0:02:27.9]} 20. Be4 {[%clk 0:02:14.3]}
20... Ne5 {[%clk 0:02:09.6]} 21. Rxa7 {[%clk 0:01:59]} 21... Qe3 {[%clk
0:02:07.5]} 22. Bf5 {[%clk 0:01:42.9]} 22... Qxa7 {[%clk 0:02:01.3]} 0-1

[Event "*** Titled Tuesday Blitz"]
[Site "Chess.com"]
[Date "2021.04.20"]
[Round "8"]
[White "alejanchess73"]
[Black "CraiggoryC"]
[Result "1-0"]
[WhiteElo "2438"]
[BlackElo "2178"]
[TimeControl "180+1"]
[EndTime "11:23:09 PDT"]
[Termination "alejanchess73 won by resignation"]

1. e4 {[%clk 0:03:00.9]} 1... e6 {[%clk 0:02:59.6]} 2. d4 {[%clk 0:03:00.4]}
2... d5 {[%clk 0:03:00.2]} 3. Nc3 {[%clk 0:03:00.5]} 3... Bb4 {[%clk 0:03:00.7]}
4. Ne2 {[%clk 0:03:00.2]} 4... dxe4 {[%clk 0:03:00]} 5. a3 {[%clk 0:02:58.6]}
5... Be7 {[%clk 0:02:59]} 6. Nxe4 {[%clk 0:02:57.1]} 6... Nf6 {[%clk 0:02:59.7]}
7. Qd3 {[%clk 0:02:57]} 7... Nxe4 {[%clk 0:02:57.3]} 8. Qxe4 {[%clk 0:02:56.7]}
8... Nd7 {[%clk 0:02:58]} 9. Bf4 {[%clk 0:02:55.2]} 9... c5 {[%clk 0:02:57.7]}
10. O-O-O {[%clk 0:02:54.4]} 10... Nf6 {[%clk 0:02:48.3]} 11. Qf3 {[%clk
0:02:50.7]} 11... Qd5 {[%clk 0:02:46.8]} 12. Qxd5 {[%clk 0:02:40.7]} 12... Nxd5
{[%clk 0:02:46.5]} 13. Bg3 {[%clk 0:02:40]} 13... Bd7 {[%clk 0:02:38.7]} 14.
dxc5 {[%clk 0:02:38.2]} 14... Bxc5 {[%clk 0:02:34.7]} 15. Nd4 {[%clk 0:02:37.4]}
15... Rc8 {[%clk 0:02:30.1]} 16. Kb1 {[%clk 0:02:36.5]} 16... f6 {[%clk
0:02:17.1]} 17. Nb3 {[%clk 0:02:31]} 17... Bb6 {[%clk 0:02:11.1]} 18. Bd3 {[%clk
0:02:30.9]} 18... Kf7 {[%clk 0:02:06.5]} 19. Rhe1 {[%clk 0:02:29.6]} 19... e5
{[%clk 0:01:52.2]} 20. Be4 {[%clk 0:02:03]} 20... Bc6 {[%clk 0:01:29.2]} 21.
Bxd5+ {[%clk 0:02:00]} 21... Bxd5 {[%clk 0:01:30.1]} 22. Rxd5 {[%clk 0:02:00]}
22... Rhd8 {[%clk 0:01:29.8]} 23. Red1 {[%clk 0:01:59.3]} 23... Rxd5 {[%clk
0:01:30]} 24. Rxd5 {[%clk 0:02:00.1]} 1-0

[Event "*** Titled Tuesday Blitz"]
[Site "Chess.com"]
[Date "2021.04.20"]
[Round "8"]
[White "Fraler15"]
[Black "kritipatel"]
[Result "0-1"]
[WhiteElo "2190"]
[BlackElo "1750"]
[TimeControl "180+1"]
[EndTime "11:23:20 PDT"]
[Termination "kritipatel won by checkmate"]

1. e4 {[%clk 0:03:00.9]} 1... e5 {[%clk 0:02:59.3]} 2. Nf3 {[%clk 0:03:00.1]}
2... Nc6 {[%clk 0:02:59.7]} 3. Bb5 {[%clk 0:02:59.2]} 3... a6 {[%clk 0:02:59.2]}
4. Ba4 {[%clk 0:02:59.3]} 4... Nf6 {[%clk 0:02:59.2]} 5. O-O {[%clk 0:02:58.9]}
5... b5 {[%clk 0:02:59.1]} 6. Bb3 {[%clk 0:02:58.8]} 6... Bc5 {[%clk 0:02:58.5]}
7. d3 {[%clk 0:02:55.8]} 7... d6 {[%clk 0:02:58.3]} 8. Bg5 {[%clk 0:02:52]} 8...
h6 {[%clk 0:02:55.3]} 9. Bh4 {[%clk 0:02:51.7]} 9... g5 {[%clk 0:02:53.3]} 10.
Bxg5 {[%clk 0:02:29.5]} 10... hxg5 {[%clk 0:02:51.8]} 11. Nxg5 {[%clk
0:02:30.4]} 11... Ng4 {[%clk 0:02:39.3]} 12. Nxf7 {[%clk 0:02:28.9]} 12... Qh4
{[%clk 0:02:37.9]} 13. h3 {[%clk 0:02:24.6]} 13... Nxf2 {[%clk 0:02:37]} 14.
Rxf2 {[%clk 0:01:32.6]} 14... Qxf2+ {[%clk 0:02:22.9]} 15. Kh1 {[%clk
0:01:15.4]} 15... Bxh3 {[%clk 0:02:19.8]} 16. Nxh8 {[%clk 0:00:52.2]} 16...
Qxg2# {[%clk 0:02:13.8]} 0-1

[Event "*** Titled Tuesday Blitz"]
[Site "Chess.com"]
[Date "2021.04.20"]
[Round "8"]
[White "jraosam"]
[Black "WisdomGame"]
[Result "1-0"]
[WhiteElo "1922"]
[BlackElo "2090"]
[TimeControl "180+1"]
[EndTime "11:23:59 PDT"]
[Termination "jraosam won by checkmate"]

1. c4 {[%clk 0:03:00.9]} 1... Nf6 {[%clk 0:02:58.4]} 2. Nc3 {[%clk 0:03:00.1]}
2... e5 {[%clk 0:02:58.2]} 3. Nf3 {[%clk 0:02:57.2]} 3... d6 {[%clk 0:02:57.6]}
4. e3 {[%clk 0:02:49.9]} 4... Nbd7 {[%clk 0:02:57.7]} 5. d4 {[%clk 0:02:49.6]}
5... Be7 {[%clk 0:02:57.2]} 6. d5 {[%clk 0:02:48.6]} 6... O-O {[%clk 0:02:56]}
7. e4 {[%clk 0:02:48.6]} 7... Ne8 {[%clk 0:02:53.6]} 8. Bd3 {[%clk 0:02:48.2]}
8... Nc5 {[%clk 0:02:53.8]} 9. Bc2 {[%clk 0:02:45.1]} 9... a5 {[%clk 0:02:53.5]}
10. h4 {[%clk 0:02:40.6]} 10... Bg4 {[%clk 0:02:49.5]} 11. Be3 {[%clk
0:02:36.8]} 11... g6 {[%clk 0:02:45.6]} 12. Qd2 {[%clk 0:02:35.2]} 12... Bxf3
{[%clk 0:02:44.6]} 13. gxf3 {[%clk 0:02:34.3]} 13... Bxh4 {[%clk 0:02:42.7]} 14.
O-O-O {[%clk 0:02:30.4]} 14... Ng7 {[%clk 0:02:40.9]} 15. f4 {[%clk 0:02:15]}
15... exf4 {[%clk 0:02:37]} 16. Bxf4 {[%clk 0:02:15.9]} 16... Bf6 {[%clk
0:02:34.5]} 17. Be3 {[%clk 0:02:09.2]} 17... Qe7 {[%clk 0:02:33]} 18. Rh3 {[%clk
0:02:05.4]} 18... Rfe8 {[%clk 0:02:28.3]} 19. Rdh1 {[%clk 0:02:05]} 19... h5
{[%clk 0:02:27.9]} 20. Bxc5 {[%clk 0:01:52.9]} 20... dxc5 {[%clk 0:02:28.8]} 21.
f4 {[%clk 0:01:52.9]} 21... Bd4 {[%clk 0:02:19.7]} 22. e5 {[%clk 0:01:51.7]}
22... Rad8 {[%clk 0:02:12.1]} 23. Ne4 {[%clk 0:01:49.2]} 23... Kh8 {[%clk
0:01:41.1]} 24. Nf6 {[%clk 0:01:33.2]} 24... Rf8 {[%clk 0:01:39.8]} 25. f5
{[%clk 0:01:25.5]} 25... Qxe5 {[%clk 0:01:28.6]} 26. Qh6# {[%clk 0:01:24.8]} 1-0

[Event "*** Titled Tuesday Blitz"]
[Site "Chess.com"]
[Date "2021.04.20"]
[Round "8"]
[White "adnan_nn"]
[Black "Problematique_99"]
[Result "1-0"]
[WhiteElo "2656"]
[BlackElo "2498"]
[TimeControl "180+1"]
[EndTime "11:24:01 PDT"]
[Termination "adnan_nn won by resignation"]

1. e4 {[%clk 0:03:00.9]} 1... e5 {[%clk 0:02:58.9]} 2. Nf3 {[%clk 0:02:59.6]}
2... Nc6 {[%clk 0:02:59.2]} 3. Bb5 {[%clk 0:02:59.2]} 3... Nf6 {[%clk
0:02:57.3]} 4. O-O {[%clk 0:02:57.4]} 4... Nxe4 {[%clk 0:02:56.8]} 5. d4 {[%clk
0:02:55.5]} 5... Nd6 {[%clk 0:02:53.5]} 6. dxe5 {[%clk 0:02:53.9]} 6... Nxb5
{[%clk 0:02:51.8]} 7. a4 {[%clk 0:02:54.3]} 7... Nbd4 {[%clk 0:02:49.3]} 8. Nxd4
{[%clk 0:02:51.4]} 8... Nxd4 {[%clk 0:02:49.2]} 9. Qxd4 {[%clk 0:02:52.2]} 9...
d5 {[%clk 0:02:49.3]} 10. Nc3 {[%clk 0:02:41.6]} 10... Be6 {[%clk 0:02:46.6]}
11. b4 {[%clk 0:02:30.6]} 11... a5 {[%clk 0:02:35]} 12. b5 {[%clk 0:02:30.7]}
12... c5 {[%clk 0:02:30.6]} 13. Qd3 {[%clk 0:02:20.3]} 13... Be7 {[%clk
0:02:07.8]} 14. f4 {[%clk 0:02:18.2]} 14... d4 {[%clk 0:02:05.7]} 15. Ne4 {[%clk
0:02:10.6]} 15... c4 {[%clk 0:01:57.8]} 16. Qg3 {[%clk 0:02:09.6]} 16... Qd5
{[%clk 0:01:46.9]} 17. Re1 {[%clk 0:01:52.2]} 17... g6 {[%clk 0:01:26.2]} 18.
Ba3 {[%clk 0:01:49.8]} 18... Qd8 {[%clk 0:01:14.1]} 19. Bxe7 {[%clk 0:01:47.9]}
19... Qxe7 {[%clk 0:01:15]} 20. Nd6+ {[%clk 0:01:47.6]} 20... Kf8 {[%clk
0:01:14.9]} 21. Rad1 {[%clk 0:01:46.5]} 21... d3 {[%clk 0:01:05.8]} 22. cxd3
{[%clk 0:01:42.2]} 22... cxd3 {[%clk 0:01:06.7]} 23. Qxd3 {[%clk 0:01:36.5]} 1-0

[Event "*** Titled Tuesday Blitz"]
[Site "Chess.com"]
[Date "2021.04.20"]
[Round "8"]
[White "Klavdia_Nik"]
[Black "Alliswell998"]
[Result "0-1"]
[WhiteElo "2035"]
[BlackElo "2633"]
[TimeControl "180+1"]
[EndTime "11:24:20 PDT"]
[Termination "Alliswell998 won on time"]

1. Nf3 {[%clk 0:01:28.8]} 1... c5 {[%clk 0:03:00.9]} 2. c4 {[%clk 0:01:27.3]}
2... b6 {[%clk 0:03:01]} 3. g3 {[%clk 0:01:21.5]} 3... e6 {[%clk 0:03:01.9]} 4.
Bg2 {[%clk 0:01:19.8]} 4... Bb7 {[%clk 0:03:02.8]} 5. O-O {[%clk 0:01:19.6]}
5... Nf6 {[%clk 0:03:03.4]} 6. d4 {[%clk 0:01:18.3]} 6... cxd4 {[%clk
0:03:04.3]} 7. Qxd4 {[%clk 0:01:18.3]} 7... Be7 {[%clk 0:03:03.9]} 8. Nc3 {[%clk
0:01:18.8]} 8... d6 {[%clk 0:03:04.1]} 9. b3 {[%clk 0:01:15.4]} 9... a6 {[%clk
0:03:04.3]} 10. Ba3 {[%clk 0:01:14.8]} 10... O-O {[%clk 0:03:00.4]} 11. Rfd1
{[%clk 0:01:14.2]} 11... Ne8 {[%clk 0:02:58.7]} 12. Rac1 {[%clk 0:01:09.1]}
12... Nd7 {[%clk 0:02:56.4]} 13. e4 {[%clk 0:00:46.9]} 13... Qc7 {[%clk
0:02:54.7]} 14. Qe3 {[%clk 0:00:41.7]} 14... Nc5 {[%clk 0:02:53.4]} 15. Nd4
{[%clk 0:00:40.9]} 15... Nf6 {[%clk 0:02:50.5]} 16. f3 {[%clk 0:00:40.4]} 16...
Rac8 {[%clk 0:02:49.9]} 17. g4 {[%clk 0:00:33.2]} 17... Rfe8 {[%clk 0:02:48.1]}
18. Nde2 {[%clk 0:00:33.1]} 18... Qb8 {[%clk 0:02:46.7]} 19. Ng3 {[%clk
0:00:31.9]} 19... Bf8 {[%clk 0:02:39.8]} 20. Bb2 {[%clk 0:00:23]} 20... Ba8
{[%clk 0:02:26.6]} 21. Rd2 {[%clk 0:00:20.4]} 21... b5 {[%clk 0:02:26.4]} 22.
Bf1 {[%clk 0:00:03.7]} 22... bxc4 {[%clk 0:02:22.6]} 23. Bxc4 {[%clk 0:00:03.5]}
23... d5 {[%clk 0:02:20.4]} 0-1

[Event "*** Titled Tuesday Blitz"]
[Site "Chess.com"]
[Date "2021.04.20"]
[Round "8"]
[White "C_K_G"]
[Black "akanga001"]
[Result "1-0"]
[WhiteElo "2085"]
[BlackElo "1984"]
[TimeControl "180+1"]
[EndTime "11:24:43 PDT"]
[Termination "C_K_G won by resignation"]

1. e4 {[%clk 0:02:55.9]} 1... c6 {[%clk 0:01:58.6]} 2. Nf3 {[%clk 0:02:50.3]}
2... d5 {[%clk 0:01:59.5]} 3. Nc3 {[%clk 0:02:49.4]} 3... dxe4 {[%clk
0:02:00.4]} 4. Nxe4 {[%clk 0:02:44.4]} 4... Nf6 {[%clk 0:02:00.8]} 5. Nxf6+
{[%clk 0:02:44.7]} 5... gxf6 {[%clk 0:02:01.7]} 6. d4 {[%clk 0:02:44.5]} 6...
Bg4 {[%clk 0:02:01.5]} 7. Be3 {[%clk 0:02:43]} 7... e6 {[%clk 0:02:00.2]} 8. Be2
{[%clk 0:02:43.3]} 8... Na6 {[%clk 0:01:58.8]} 9. Qd2 {[%clk 0:02:42.9]} 9...
Bb4 {[%clk 0:01:53]} 10. c3 {[%clk 0:02:42.8]} 10... Bd6 {[%clk 0:01:51.4]} 11.
O-O-O {[%clk 0:02:41.8]} 11... Nc7 {[%clk 0:01:50.4]} 12. h3 {[%clk 0:02:39.1]}
12... Bh5 {[%clk 0:01:49.7]} 13. c4 {[%clk 0:02:38.2]} 13... Qd7 {[%clk
0:01:41.1]} 14. Kb1 {[%clk 0:02:38]} 14... O-O-O {[%clk 0:01:40.2]} 15. Ka1
{[%clk 0:02:37.7]} 15... Na6 {[%clk 0:01:36.7]} 16. c5 {[%clk 0:02:37.1]} 16...
Be7 {[%clk 0:01:34.3]} 17. Bxa6 {[%clk 0:02:37]} 17... bxa6 {[%clk 0:01:35.2]}
18. Qa5 {[%clk 0:02:36.1]} 18... Qb7 {[%clk 0:01:34.1]} 19. Rd3 {[%clk
0:02:35.1]} 19... Qb5 {[%clk 0:01:33]} 20. Qa3 {[%clk 0:02:34.7]} 20... a5
{[%clk 0:01:24]} 21. Rb3 {[%clk 0:02:28.5]} 21... Qa6 {[%clk 0:01:23.5]} 22. Rc1
{[%clk 0:02:25.1]} 22... Bxf3 {[%clk 0:01:22.6]} 23. gxf3 {[%clk 0:02:23.5]}
23... Rhg8 {[%clk 0:01:21.4]} 24. Qa4 {[%clk 0:02:20.1]} 24... e5 {[%clk
0:01:13.4]} 25. Ra3 {[%clk 0:02:05.7]} 25... exd4 {[%clk 0:01:08.5]} 26. Bxd4
{[%clk 0:02:06.6]} 26... Rd5 {[%clk 0:01:08.1]} 27. Be3 {[%clk 0:02:01]} 27...
Bd8 {[%clk 0:01:01.3]} 28. Qe4 {[%clk 0:01:50.3]} 28... Re5 {[%clk 0:00:56.9]}
29. Qxh7 {[%clk 0:01:46.3]} 29... Rge8 {[%clk 0:00:57.2]} 30. Qxf7 {[%clk
0:01:44.8]} 30... Be7 {[%clk 0:00:51.7]} 31. Qxe8+ {[%clk 0:01:41.7]} 31... Kc7
{[%clk 0:00:49.7]} 32. Bf4 {[%clk 0:01:40.4]} 1-0